fUSD/lending_fUSD_20250616
["ID","MTS","AMOUNT","RATE_DAILY","PERIOD"]
[366180653,1750101047798,-490.0,0.00016048,2]
[366180654,1750101047808,-490.0,0.00016048,2]
[366180655,1750101047819,-490.0,0.00016048,2]
[366180656,1750101047830,-1067.16,0.00016048,2]
[366180657,1750101047841,-490.0,0.00016048,2]
[366180658,1750101047851,-942.79,0.00016048,2]
[366180659,1750101047862,-490.0,0.00016048,2]
[366180660,1750101047879,-886.9,0.00016048,2]
[366180661,1750101047890,-490.0,0.00016048,2]
[366180662,1750101047901,-490.0,0.00016048,2]
[366180663,1750101047912,-1272.14,0.00016048,2]
[366180664,1750101047923,-490.0,0.00016048,2]
[366180665,1750101047936,-589.28,0.00016048,2]
[366180666,1750101047947,-490.0,0.00016048,2]
[366180667,1750101047958,-508.92,0.00016048,2]
[366180668,1750101047969,-6609.89,0.00016048,2]
[366180669,1750101047981,-490.0,0.00016048,2]
[366180670,1750101047992,-490.0,0.00016048,2]
[366180671,1750101048003,-490.0,0.00016048,2]
[366180672,1750101048013,-490.0,0.00016048,2]
[366180673,1750101048024,-490.0,0.00016048,2]
[366180674,1750101048035,-1090.04,0.00016048,2]
[366180675,1750101048046,-596.99,0.00016048,2]
[366180676,1750101048056,-490.0,0.00016048,2]
[366180677,1750101048067,-3665.33,0.00016048,2]
[366180678,1750101048077,-490.0,0.00016048,2]
[366180679,1750101048088,-2175.46,0.00016048,2]
[366180680,1750101048099,-1212.73,0.00016048,2]
[366180681,1750101048109,-490.0,0.00016048,2]
[366180682,1750101048120,-490.0,0.00016048,2]
[366180683,1750101048131,-490.0,0.00016048,2]
[366180684,1750101048141,-490.0,0.00016048,2]
[366180685,1750101048152,-9235.5,0.00016048,2]
[366180686,1750101048163,-490.0,0.00016048,2]
[366180687,1750101048173,-490.0,0.00016048,2]
[366180688,1750101048185,-573.89,0.00016048,2]
[366180689,1750101048196,-630.51,0.00016048,2]
[366180690,1750101048207,-500.0,0.00016048,2]
[366180691,1750101048217,-580.12,0.00016048,2]
[366180692,1750101048228,-490.0,0.00016048,2]
[366180693,1750101048239,-1058.81,0.00016048,2]
[366180694,1750101048249,-490.0,0.00016048,2]
[366180695,1750101048259,-2298.07,0.00016048,2]
[366180696,1750101048269,-1182.32,0.00016048,2]
[366180697,1750101048280,-716.89,0.00016048,2]
[366180698,1750101048291,-593.06,0.00016048,2]
[366180699,1750101048301,-983.09,0.00016048,2]
[366180700,1750101048311,-490.0,0.00016048,2]
[366180701,1750101048325,-603.92,0.00016048,2]
[366180702,1750101048336,-490.0,0.00016048,2]
[366180703,1750101048347,-490.0,0.00016048,2]
[366180704,1750101048359,-490.0,0.00016048,2]
[366180705,1750101048369,-1051.83,0.00016048,2]
[366180706,1750101048380,-631.32,0.00016048,2]
[366180707,1750101048390,-490.0,0.00016048,2]
[366180708,1750101048403,-1223.51,0.00016048,2]
[366180709,1750101048414,-1364.89,0.00016048,2]
[366180710,1750101048424,-490.0,0.00016048,2]
[366180711,1750101048435,-525.8,0.00016048,2]
[366180712,1750101048446,-688.56,0.00016048,2]
[366180713,1750101048456,-501.39,0.00016048,2]
[366180714,1750101048467,-490.0,0.00016048,2]
[366180715,1750101048477,-2022.94,0.00016048,2]
[366180716,1750101048489,-490.0,0.00016048,2]
[366180717,1750101048499,-490.0,0.00016048,2]
[366180718,1750101048510,-490.0,0.00016048,2]
[366180719,1750101048520,-861.25,0.00016048,2]
[366180720,1750101048531,-1858.5,0.00016048,2]
[366180721,1750101048541,-545.64,0.00016048,2]
[366180722,1750101048551,-631.78,0.00016048,2]
[366180723,1750101048562,-490.0,0.00016048,2]
[366180724,1750101048572,-490.0,0.00016048,2]
[366180725,1750101048582,-490.0,0.00016048,2]
[366180726,1750101048592,-3421.36,0.00016048,2]
[366180727,1750101048602,-490.0,0.00016048,2]
[366180728,1750101048612,-1594.36,0.00016048,2]
[366180729,1750101048622,-490.0,0.00016048,2]
[366180730,1750101048632,-1145.51,0.00016048,2]
[366180731,1750101048643,-1470.96,0.00016048,2]
[366180732,1750101048653,-490.0,0.00016048,2]
[366180733,1750101048663,-654.49,0.00016048,2]
[366180734,1750101048674,-729.98,0.00016048,2]
[366180735,1750101048686,-490.0,0.00016048,2]
[366180736,1750101048697,-490.0,0.00016048,2]
[366180737,1750101048708,-490.0,0.00016048,2]
[366180738,1750101048719,-490.0,0.00016048,2]
[366180739,1750101048730,-931.26,0.00016048,2]
[366180740,1750101048741,-490.0,0.00016048,2]
[366180741,1750101048752,-490.0,0.00016048,2]
[366180742,1750101048763,-4206.17,0.00016048,2]
[366180743,1750101048774,-490.0,0.00016048,2]
[366180744,1750101048785,-3623.93,0.00016048,2]
[366180745,1750101048797,-490.0,0.00016049,2]
[366180746,1750101048808,-391.65241084,0.00016049,2]
[366180747,1750101048819,-490.0,0.00016049,2]
[366180748,1750101048830,-490.0,0.00016049,2]
[366180749,1750101048841,-490.0,0.00016049,2]
[366180750,1750101048853,-545.96980815,0.00016049,2]
[366180751,1750101048865,-490.0,0.00016049,2]
[366180752,1750101048876,-490.0,0.00016049,2]
[366180753,1750101048887,-490.0,0.00016049,2]
[366180754,1750101048899,-490.0,0.00016049,2]
[366180755,1750101048909,-490.0,0.00016049,2]
[366180756,1750101048919,-490.0,0.00016049,2]
[366180757,1750101048930,-490.0,0.00016049,2]
[366180758,1750101048941,-490.0,0.00016049,2]
[366180759,1750101048951,-490.0,0.00016049,2]
[366180760,1750101048962,-490.0,0.00016049,2]
[366180761,1750101048973,-490.0,0.00016049,2]
[366180762,1750101048983,-490.0,0.00016049,2]
[366180763,1750101048994,-378.60504396,0.00016049,2]
[366180764,1750101049006,-490.0,0.00016049,2]
[366180765,1750101049016,-490.0,0.00016049,2]
[366180766,1750101049027,-389.84441937,0.00016049,2]
[366180767,1750101049038,-490.0,0.00016049,2]
[366180768,1750101049049,-306.34,0.00016049,2]
[366180769,1750101049174,-490.0,0.00016049,2]
[366180770,1750101049186,-490.0,0.00016049,2]
[366180771,1750101049197,-490.0,0.00016049,2]
[366180772,1750101049207,-490.0,0.00016049,2]
[366180773,1750101049218,-680.45,0.00016049,2]
[366180774,1750101049228,-490.0,0.00016049,2]
[366180775,1750101049238,-490.0,0.00016049,2]
[366180776,1750101049248,-490.0,0.00016049,2]
[366180777,1750101049258,-490.0,0.00016049,2]
[366180778,1750101049268,-572.14,0.00016049,2]
[366180779,1750101049279,-490.0,0.00016049,2]
[366180780,1750101049290,-490.0,0.00016049,2]
[366180781,1750101049301,-490.0,0.00016049,2]
[366180782,1750101049311,-490.0,0.00016049,2]
[366180783,1750101049324,-490.0,0.00016049,2]
[366180784,1750101049335,-523.24,0.00016049,2]
[366180785,1750101049346,-938.11,0.00016049,2]
[366180786,1750101049356,-490.0,0.00016049,2]
[366180787,1750101049369,-490.0,0.00016049,2]
[366180788,1750101049380,-601.44,0.00016049,2]
[366180789,1750101049391,-490.0,0.00016049,2]
[366180790,1750101049402,-490.0,0.00016049,2]
[366180791,1750101049413,-490.0,0.00016049,2]
[366180792,1750101049423,-490.0,0.00016049,2]
[366180793,1750101049434,-490.0,0.00016049,2]
[366180794,1750101049445,-490.0,0.00016049,2]
[366180795,1750101049454,-1030.29,0.00016049,2]
[366180796,1750101049464,-490.0,0.00016049,2]
[366180797,1750101049474,-504.43,0.00016049,2]
[366180798,1750101049484,-490.0,0.00016049,2]
[366180799,1750101049494,-490.0,0.00016049,2]
[366180800,1750101049503,-638.76,0.00016049,2]
[366180801,1750101049513,-529.18,0.00016049,2]
[366180802,1750101049523,-490.0,0.00016049,2]
[366180803,1750101049532,-490.0,0.00016049,2]
[366180804,1750101049542,-761.85,0.00016049,2]
[366180805,1750101049552,-490.0,0.00016049,2]
[366180806,1750101049561,-490.0,0.00016049,2]
[366180807,1750101049571,-530.89,0.00016049,2]
[366180808,1750101049581,-490.0,0.00016049,2]
[366180809,1750101049591,-195.53,0.00016049,2]
[366180810,1750101049600,-630.77,0.00016049,2]
[366180811,1750101049610,-490.0,0.00016049,2]
[366180812,1750101049620,-490.0,0.00016049,2]
[366180813,1750101049629,-490.0,0.00016049,2]
[366180814,1750101049639,-540.63,0.00016049,2]
[366180815,1750101049649,-792.69,0.00016049,2]
[366180816,1750101049658,-490.0,0.00016049,2]
[366180817,1750101049669,-770.97,0.00016049,2]
[366180818,1750101049678,-490.0,0.00016049,2]
[366180819,1750101049689,-490.0,0.00016049,2]
[366180820,1750101049699,-490.0,0.00016049,2]
[366180821,1750101049709,-490.0,0.00016049,2]
[366180822,1750101049719,-490.0,0.00016049,2]
[366180823,1750101049728,-490.0,0.00016049,2]
[366180824,1750101049738,-490.0,0.00016049,2]
[366180825,1750101049748,-783.11,0.00016049,2]
[366180826,1750101049758,-490.0,0.00016049,2]
[366180827,1750101049768,-490.0,0.00016049,2]
[366180828,1750101049778,-567.55,0.00016049,2]
[366180829,1750101049788,-490.0,0.00016049,2]
[366180830,1750101049798,-800.37,0.00016049,2]
[366180831,1750101049808,-490.0,0.00016049,2]
[366180832,1750101049818,-490.0,0.00016049,2]
[366180833,1750101049827,-490.0,0.00016049,2]
[366180834,1750101049838,-490.0,0.00016049,2]
[366180835,1750101049848,-490.0,0.00016049,2]
[366180836,1750101049858,-552.85,0.00016049,2]
[366180837,1750101049868,-490.0,0.00016049,2]
[366180838,1750101049878,-490.0,0.00016049,2]
[366180839,1750101049887,-757.7,0.00016049,2]
[366180840,1750101049897,-240.56,0.00016049,2]
[366180841,1750101049906,-506.54,0.00016049,2]
[366180842,1750101049916,-585.72,0.00016049,2]
[366180843,1750101049926,-490.0,0.00016049,2]
[366180844,1750101049936,-514.38,0.00016049,2]
[366180845,1750101049946,-510.89,0.00016049,2]
[366180846,1750101049955,-490.0,0.00016049,2]
[366180847,1750101049965,-490.0,0.00016049,2]
[366180848,1750101049975,-490.0,0.00016049,2]
[366180849,1750101049985,-513.4,0.00016049,2]
[366180850,1750101049994,-588.44,0.00016049,2]
[366180851,1750101050003,-490.0,0.00016049,2]
[366180852,1750101050013,-490.0,0.00016049,2]
[366180853,1750101050022,-490.0,0.00016049,2]
[366180854,1750101050031,-490.0,0.00016049,2]
[366180855,1750101050041,-490.0,0.00016049,2]
[366180856,1750101050050,-490.0,0.00016049,2]
[366180857,1750101050059,-490.0,0.00016049,2]
[366180858,1750101050069,-490.0,0.00016049,2]
[366180859,1750101050080,-1175.82,0.00016049,2]
[366180860,1750101050090,-490.0,0.00016049,2]
[366180861,1750101050100,-490.0,0.00016049,2]
[366180862,1750101050110,-490.0,0.00016049,2]
[366180863,1750101050120,-490.0,0.00016049,2]
[366180864,1750101050129,-490.0,0.00016049,2]
[366180865,1750101050139,-578.69,0.00016049,2]
[366180866,1750101050149,-558.84,0.00016049,2]
[366180867,1750101050159,-490.0,0.00016049,2]
[366180868,1750101050168,-490.0,0.00016049,2]
[366180869,1750101050178,-490.0,0.00016049,2]
[366180870,1750101050188,-490.0,0.00016049,2]
[366180871,1750101050198,-490.0,0.00016049,2]
[366180872,1750101050208,-992.84,0.00016049,2]
[366180873,1750101050218,-604.36,0.00016049,2]
[366180874,1750101050228,-490.0,0.00016049,2]
[366180875,1750101050237,-490.0,0.00016049,2]
[366180876,1750101050247,-490.0,0.00016049,2]
[366180877,1750101050257,-490.0,0.00016049,2]
[366180878,1750101050266,-707.36,0.00016049,2]
[366180879,1750101050276,-180.29428666,0.00016049,2]
[366180880,1750101050285,-490.0,0.00016049,2]
[366180881,1750101050295,-541.96,0.00016049,2]
[366180882,1750101050305,-490.0,0.00016049,2]
[366180883,1750101050315,-490.0,0.00016049,2]
[366180884,1750101050327,-490.0,0.00016049,2]
[366180885,1750101050337,-490.0,0.00016049,2]
[366180886,1750101050346,-490.0,0.00016049,2]
[366180887,1750101050356,-490.0,0.00016049,2]
[366180888,1750101050366,-633.46,0.00016049,2]
[366180889,1750101050375,-490.0,0.00016049,2]
[366180890,1750101050385,-490.0,0.00016049,2]
[366180891,1750101050396,-490.0,0.00016049,2]
[366180892,1750101050406,-490.0,0.00016049,2]
[366180893,1750101050415,-831.69,0.00016049,2]
[366180894,1750101050425,-490.0,0.00016049,2]
[366180895,1750101050435,-1934.72,0.00016049,2]
[366180896,1750101050445,-490.0,0.00016049,2]
[366180897,1750101050455,-650.11,0.00016049,2]
[366180898,1750101050464,-909.86,0.00016049,2]
[366180899,1750101050473,-882.04,0.00016049,2]
[366180900,1750101050483,-490.0,0.00016049,2]
[366180901,1750101050493,-1578.99,0.00016049,2]
[366180902,1750101050504,-490.0,0.00016049,2]
[366180903,1750101050514,-490.0,0.00016049,2]
[366180904,1750101050524,-586.72,0.00016049,2]
[366180905,1750101050533,-490.0,0.00016049,2]
[366180906,1750101050543,-490.0,0.00016049,2]
[366180907,1750101050552,-546.25,0.00016049,2]
[366180908,1750101050562,-719.64,0.00016049,2]
[366180909,1750101050572,-490.0,0.00016049,2]
[366180910,1750101050581,-490.0,0.00016049,2]
[366180911,1750101050591,-490.0,0.00016049,2]
[366180912,1750101050601,-874.16,0.00016049,2]
[366180913,1750101050610,-637.33,0.00016049,2]
[366180914,1750101050620,-507.22,0.00016049,2]
[366180915,1750101050630,-490.0,0.00016049,2]
[366180916,1750101050639,-490.0,0.00016049,2]
[366180917,1750101050649,-490.0,0.00016049,2]
[366180918,1750101050658,-490.0,0.00016049,2]
[366180919,1750101050668,-3300.15,0.00016049,2]
[366180920,1750101050677,-490.0,0.00016049,2]
[366180921,1750101050687,-490.0,0.00016049,2]
[366180922,1750101050697,-490.0,0.00016049,2]
[366180923,1750101050707,-3206.84,0.00016049,2]
[366180924,1750101050716,-490.0,0.00016049,2]
[366180925,1750101050726,-490.0,0.00016049,2]
[366180926,1750101050736,-1380.3,0.00016049,2]
[366180927,1750101050746,-490.0,0.00016049,2]
[366180928,1750101050756,-490.0,0.00016049,2]
[366180929,1750101050766,-2201.58,0.00016049,2]
[366180930,1750101050775,-490.0,0.00016049,2]
[366180931,1750101050786,-490.0,0.00016049,2]
[366180932,1750101050797,-490.0,0.00016049,2]
[366180933,1750101050806,-617.69100969,0.00016049,2]
[366180934,1750101050816,-498.62,0.00016049,2]
[366180935,1750101050827,-490.0,0.00016049,2]
[366180936,1750101050836,-490.0,0.00016049,2]
[366180937,1750101050846,-1122.87,0.00016049,2]
[366180938,1750101050856,-490.0,0.00016049,2]
[366180939,1750101050866,-595.07,0.00016049,2]
[366180940,1750101050876,-921.22,0.00016049,2]
[366180941,1750101050887,-195.42356406,0.00016049,2]
[366180942,1750101050897,-490.0,0.00016049,2]
[366180943,1750101050907,-1533.43,0.00016049,2]
[366180944,1750101050918,-490.0,0.00016049,2]
[366180945,1750101050928,-490.0,0.00016049,2]
[366180946,1750101050939,-490.0,0.00016049,2]
[366180947,1750101050949,-8111.1,0.00016049,2]
[366180948,1750101050959,-604.22,0.00016049,2]
[366180949,1750101050970,-2826.4,0.00016049,2]
[366180950,1750101050980,-490.0,0.00016049,2]
[366180951,1750101050990,-490.0,0.00016049,2]
[366180952,1750101050999,-490.0,0.00016049,2]
[366180953,1750101051009,-599.51,0.00016049,2]
[366180954,1750101051019,-490.0,0.00016049,2]
[366180955,1750101051029,-2167.73,0.00016049,2]
[366180956,1750101051038,-490.0,0.00016049,2]
[366180957,1750101051048,-490.0,0.00016049,2]
[366180958,1750101051058,-490.0,0.00016049,2]
[366180959,1750101051067,-5550.4,0.00016049,2]
[366180960,1750101051077,-490.0,0.00016049,2]
[366180961,1750101051087,-490.0,0.00016049,2]
[366180962,1750101051096,-547.83,0.00016049,2]
[366180963,1750101051106,-1453.16,0.00016049,2]
[366180964,1750101051116,-490.0,0.00016049,2]
[366180965,1750101051126,-490.0,0.00016049,2]
[366180966,1750101051136,-623.51,0.00016049,2]
[366180967,1750101051146,-490.0,0.00016049,2]
[366180968,1750101051155,-789.14,0.00016049,2]
[366180969,1750101051165,-490.0,0.00016049,2]
[366180970,1750101051175,-797.51,0.00016055,2]
[366180971,1750101051184,-797.51,0.00016055,2]
[366180972,1750101051194,-797.51,0.00016055,2]
[366180973,1750101051203,-421.3,0.00016055,2]
[366180974,1750101051213,-163.07,0.00016079,2]
[366180975,1750101051222,-500.0,0.00016082,2]
[366180976,1750101051232,-665.92123075,0.00016094,2]
[366180977,1750101051242,-234.30743869,0.00016113,2]
[366180978,1750101051251,-182.73557559,0.00016113,2]
[366180979,1750101051261,-250.0,0.00016128,2]
[366180980,1750101051271,-203.56227755,0.00016156,2]
[366180981,1750101051282,-163.46,0.00016192,2]
[366180982,1750101051291,-163.46,0.00016192,2]
[366180983,1750101051301,-163.19,0.00016192,2]
[366180984,1750101051311,-1428.31521928,0.000162,2]
[366180985,1750101051323,-1428.31521924,0.000162,2]
[366180986,1750101051333,-1428.31521924,0.000162,2]
[366180987,1750101051344,-1428.31521924,0.000162,2]
[366180988,1750101051353,-1428.31521924,0.000162,2]
[366180989,1750101051364,-1428.31521924,0.000162,2]
[366180990,1750101051374,-1428.31521924,0.000162,2]
[366180991,1750101051384,-1428.31521924,0.000162,2]
[366180992,1750101051394,-1428.31521924,0.000162,2]
[366180993,1750101051407,-1100.0,0.000162,5]
[366180994,1750101051417,-200.0,0.00016204,2]
[366180995,1750101051426,-200.0,0.00016204,2]
[366180996,1750101051436,-200.0,0.00016204,2]
[366180997,1750101051446,-200.0,0.00016204,2]
[366180998,1750101051456,-1428.31521924,0.0001621,2]
[366180999,1750101051467,-222.95577659,0.00016212,2]
[366181000,1750101051477,-490.0,0.00016212,2]
[366181001,1750101051486,-490.0,0.00016212,2]
[366181002,1750101051495,-490.0,0.00016212,2]
[366181003,1750101051505,-490.0,0.00016212,2]
[366181004,1750101051514,-490.0,0.00016212,2]
[366181005,1750101051525,-988.24,0.00016212,2]
[366181006,1750101051535,-760.46,0.00016212,2]
[366181007,1750101051545,-490.0,0.00016212,2]
[366181008,1750101051555,-492.25,0.00016212,2]
[366181009,1750101051565,-799.08,0.00016212,2]
[366181010,1750101051575,-655.393685,0.00016212,2]
[366181011,1750101051584,-490.0,0.00016212,2]
[366181012,1750101051593,-735.41,0.00016212,2]
[366181013,1750101051603,-1412.365256,0.00016212,2]
[366181014,1750101051615,-490.0,0.00016212,2]
[366181015,1750101051625,-490.0,0.00016212,2]
[366181016,1750101051634,-490.0,0.00016212,2]
[366181017,1750101051644,-563.97,0.00016212,2]
[366181018,1750101051655,-490.0,0.00016212,2]
[366181019,1750101051665,-490.0,0.00016212,2]
[366181020,1750101051677,-490.0,0.00016212,2]
[366181021,1750101051687,-603.95,0.00016212,2]
[366181022,1750101051697,-811.56,0.00016212,2]
[366181023,1750101051707,-654.31,0.00016212,2]
[366181024,1750101051717,-490.0,0.00016212,2]
[366181025,1750101051728,-490.0,0.00016212,2]
[366181026,1750101051738,-490.0,0.00016212,2]
[366181027,1750101051748,-701.28,0.00016212,2]
[366181028,1750101051757,-490.0,0.00016212,2]
[366181029,1750101051767,-490.0,0.00016212,2]
[366181030,1750101051778,-490.0,0.00016212,2]
[366181031,1750101051788,-524.03,0.00016212,2]
[366181032,1750101051799,-490.0,0.00016212,2]
[366181033,1750101051809,-598.37,0.00016212,2]
[366181034,1750101051818,-490.0,0.00016212,2]
[366181035,1750101051828,-617.51,0.00016212,2]
[366181036,1750101051839,-658.26,0.00016212,2]
[366181037,1750101051849,-490.7,0.00016212,2]
[366181038,1750101051858,-490.0,0.00016212,2]
[366181039,1750101051867,-490.0,0.00016212,2]
[366181040,1750101051877,-644.55,0.00016212,2]
[366181041,1750101051886,-490.0,0.00016212,2]
[366181042,1750101051896,-490.0,0.00016212,2]
[366181043,1750101051905,-523.03,0.00016212,2]
[366181044,1750101051915,-1215.5,0.00016212,2]
[366181045,1750101051925,-812.24,0.00016212,2]
[366181046,1750101051935,-570.22,0.00016212,2]
[366181047,1750101051945,-550.36,0.00016212,2]
[366181048,1750101051955,-490.0,0.00016212,2]
[366181049,1750101051965,-1809.0,0.00016212,2]
[366181050,1750101051975,-215.54,0.00016212,2]
[366181051,1750101051984,-756.53,0.00016212,2]
[366181052,1750101051994,-161.12402165,0.00016212,2]
[366181053,1750101052004,-490.0,0.00016212,2]
[366181054,1750101052013,-1805.47,0.00016212,2]
[366181055,1750101052022,-1518.17,0.00016212,2]
[366181056,1750101052032,-790.05,0.00016212,2]
[366181057,1750101052041,-490.0,0.00016212,2]
[366181058,1750101052050,-1055.34,0.00016212,2]
[366181059,1750101052059,-2330.39,0.00016212,2]
[366181060,1750101052069,-588.68,0.00016212,2]
[366181061,1750101052078,-490.0,0.00016212,2]
[366181062,1750101052088,-490.0,0.00016212,2]
[366181063,1750101052098,-582.63,0.00016212,2]
[366181064,1750101052108,-719.98,0.00016212,2]
[366181065,1750101052117,-741.94,0.00016212,2]
[366181066,1750101052126,-841.67,0.00016212,2]
[366181067,1750101052136,-1067.16,0.00016212,2]
[366181068,1750101052146,-490.0,0.00016212,2]
[366181069,1750101052155,-490.0,0.00016212,2]
[366181070,1750101052165,-942.79,0.00016212,2]
[366181071,1750101052174,-886.9,0.00016212,2]
[366181072,1750101052185,-490.0,0.00016212,2]
[366181073,1750101052195,-490.0,0.00016212,2]
[366181074,1750101052204,-1272.14,0.00016212,2]
[366181075,1750101052214,-490.0,0.00016212,2]
[366181076,1750101052223,-589.28,0.00016212,2]
[366181077,1750101052233,-490.0,0.00016212,2]
[366181078,1750101052243,-508.92,0.00016212,2]
[366181079,1750101052252,-490.0,0.00016212,2]
[366181080,1750101052261,-490.0,0.00016212,2]
[366181081,1750101052270,-490.0,0.00016212,2]
[366181082,1750101052279,-490.0,0.00016212,2]
[366181083,1750101052289,-490.0,0.00016212,2]
[366181084,1750101052298,-1090.04,0.00016212,2]
[366181085,1750101052307,-596.99,0.00016212,2]
[366181086,1750101052319,-3665.33,0.00016212,2]
[366181087,1750101052328,-490.0,0.00016212,2]
[366181088,1750101052338,-2175.46,0.00016212,2]
[366181089,1750101052347,-490.0,0.00016212,2]
[366181090,1750101052357,-490.0,0.00016212,2]
[366181091,1750101052366,-490.0,0.00016212,2]
[366181092,1750101052376,-490.0,0.00016212,2]
[366181093,1750101052386,-9235.5,0.00016212,2]
[366181094,1750101052397,-490.0,0.00016212,2]
[366181095,1750101052407,-490.0,0.00016212,2]
[366181096,1750101052416,-630.51,0.00016212,2]
[366181097,1750101052426,-220.55,0.00016212,2]
[366181098,1750101052436,-580.12,0.00016212,2]
[366181099,1750101052446,-490.0,0.00016212,2]
[366181100,1750101052455,-1058.81,0.00016212,2]
[366181101,1750101052464,-490.0,0.00016212,2]
[366181102,1750101052474,-2298.07,0.00016212,2]
[366181103,1750101052484,-1182.32,0.00016212,2]
[366181104,1750101052493,-593.06,0.00016212,2]
[366181105,1750101052503,-983.09,0.00016212,2]
[366181106,1750101052512,-490.0,0.00016212,2]
[366181107,1750101052521,-603.92,0.00016212,2]
[366181108,1750101052531,-533.06887041,0.00016212,2]
[366181109,1750101052540,-490.0,0.00016212,2]
[366181110,1750101052550,-559.57146971,0.00016212,2]
[366181111,1750101052559,-631.32,0.00016212,2]
[366181112,1750101052568,-490.0,0.00016212,2]
[366181113,1750101052578,-1223.51,0.00016212,2]
[366181114,1750101052588,-1364.89,0.00016212,2]
[366181115,1750101052597,-490.0,0.00016212,2]
[366181116,1750101052606,-525.8,0.00016212,2]
[366181117,1750101052616,-501.39,0.00016212,2]
[366181118,1750101052625,-490.0,0.00016212,2]
[366181119,1750101052634,-2022.94,0.00016212,2]
[366181120,1750101052644,-490.0,0.00016212,2]
[366181121,1750101052653,-490.0,0.00016212,2]
[366181122,1750101052663,-490.0,0.00016212,2]
[366181123,1750101052672,-1858.5,0.00016212,2]
[366181124,1750101052681,-545.64,0.00016212,2]
[366181125,1750101052691,-490.0,0.00016212,2]
[366181126,1750101052700,-490.0,0.00016212,2]
[366181127,1750101052710,-490.0,0.00016212,2]
[366181128,1750101052719,-3421.36,0.00016212,2]
[366181129,1750101052729,-490.0,0.00016212,2]
[366181130,1750101052738,-1594.36,0.00016212,2]
[366181131,1750101052747,-490.0,0.00016212,2]
[366181132,1750101052757,-1145.51,0.00016212,2]
[366181133,1750101052767,-490.0,0.00016212,2]
[366181134,1750101052776,-654.49,0.00016212,2]
[366181135,1750101052786,-729.98,0.00016212,2]
[366181136,1750101052796,-490.0,0.00016212,2]
[366181137,1750101052805,-301.80930281,0.00016212,2]
[366181138,1750101053277,-188.19069719,0.00016212,2]
[366181139,1750101053287,-490.0,0.00016212,2]
[366181140,1750101053298,-490.0,0.00016212,2]
[366181141,1750101053309,-931.26,0.00016212,2]
[366181142,1750101053325,-490.0,0.00016212,2]
[366181143,1750101053335,-490.0,0.00016212,2]
[366181144,1750101053346,-799.88112786,0.00016212,2]
[366181145,1750101053359,-3406.28887214,0.00016212,2]
[366181146,1750101053369,-490.0,0.00016212,2]
[366181147,1750101053378,-3623.93,0.00016212,2]
[366181148,1750101053389,-17708.8266354,0.00016213,2]
[366181149,1750101053399,-1303.80826216,0.00016213,2]
[366181150,1750101053435,-490.0,0.00015883,2]
[366181151,1750101053446,-946.6,0.00016048,2]
[366181152,1750101053456,-145463.41773567,0.00016213,2]